{"text_format":"1","workbook":"xlsx","n_sheets":3,"sheets":["складь","Лист2","Лист3"],"not_rendered":{"charts":0,"images":0,"macros":1,"external_links":0,"defined_names":0,"comments":0,"pivot_tables":0},"unopened":[],"bounds":{"document_bytes":16777216,"sheet_cells":100000,"rows_first":2000,"rows_last":500,"rows_between":2000,"halvings":0,"cell_chars":16384,"cell_head_chars":4096},"cells_cut":0,"cells_raw":0,"read":"whole","date_system":"1900"}

{"sheet":"складь","index":0,"n_rows":61,"n_cols":34,"rows_kept":61,"cut":false,"hidden":false,"merged":[[9,14,9,17],[40,22,40,23],[40,32,40,33],[38,8,38,9],[38,17,38,20],[38,29,38,31],[8,6,8,7],[9,24,9,26],[9,4,9,6],[36,7,36,8],[40,12,40,13]]}
[]
[]
[]
[]
[]
[]
[]
[]
[null,null,null,null,null,null,"сегодня"]
[null,null,null,"клиенти","краска  loreal",null,null,null,null,null,null,null,"клиенти",null,"краска  shvardzkoph",null,null,null,null,null,null,null,null,null,"краска   pm"]
[null,null,null,null,"N","шт.",null,null,null,null,null,null,null,"N","шт.",null,null,null,null,null,null,null,"N","шт."]
[null,null,null,"максим",1,10,null,null,null,null,null,null,"максим",1,null,null,null,null,null,null,null,"максим",1,10]
[null,null,null,"саша",2,10,null,null,null,null,null,null,"саша",2,null,null,null,null,null,null,null,"саша",2,10]
[null,null,null,"даша",3,10,null,null,null,null,null,null,"даша",3,null,null,null,null,null,null,null,"даша",3,10]
[null,null,null,null,4,null,null,null,null,null,null,null,null,4,null,null,null,null,null,null,null,null,4]
[null,null,null,null,5,null,null,null,null,null,null,null,null,5,null,null,null,null,null,null,null,null,5]
[null,null,null,null,6,null,null,null,null,null,null,null,null,6,null,null,null,null,null,null,null,null,6]
[null,null,null,null,7,null,null,null,null,null,null,null,null,7,null,null,null,null,null,null,null,null,7]
[null,null,null,null,8,null,null,null,null,null,null,null,null,8,null,null,null,null,null,null,null,null,8]
[null,null,null,null,9,null,null,null,null,null,null,null,null,9,null,null,null,null,null,null,null,null,9]
[null,null,null,null,10,null,null,null,null,null,null,null,null,10,null,null,null,null,null,null,null,null,10]
[null,null,null,null,11,null,null,null,null,null,null,null,null,11,null,null,null,null,null,null,null,null,11]
[null,null,null,null,12,null,null,null,null,null,null,null,null,12,null,null,null,null,null,null,null,null,12]
[null,null,null,null,13,null,null,null,null,null,null,null,null,13,null,null,null,null,null,null,null,null,13]
[null,null,null,null,14,null,null,null,null,null,null,null,null,14,null,null,null,null,null,null,null,null,14]
[null,null,null,null,15,null,null,null,null,null,null,null,null,15,null,null,null,null,null,null,null,null,15]
[null,null,null,null,16,null,null,null,null,null,null,null,null,16,null,null,null,null,null,null,null,null,16]
[null,null,null,null,17,null,null,null,null,null,null,null,null,17,null,null,null,null,null,null,null,null,17]
[null,null,null,null,18,null,null,null,null,null,null,null,null,18,null,null,null,null,null,null,null,null,18]
[null,null,null,null,19,null,null,null,null,null,null,null,null,19,null,null,null,null,null,null,null,null,19]
[null,null,null,null,20,null,null,null,null,null,null,null,null,20,null,null,null,null,null,null,null,null,20]
[]
[]
[]
[]
[]
[null,null,null,null,null,null,null,"сегодня"]
[]
[null,null,null,null,null,null,null,null,"loreal",null,null,null,null,null,null,null,null,"краска  shvardzkoph",null,null,null,null,null,null,null,null,null,null,null,"краска   pm"]
[]
[null,null,null,null,null,"N","склад",null,"расход",null,"остаток",null,"дабавка",null,null,"N","склад",null,"расход",null,"остаток",null,"дабавка",null,null,"N","склад",null,"расход",null,"остаток",null,"дабавка"]
[null,null,null,null,null,1,20,null,{"$f":"SUM(F12:K12)","v":10},null,{"$f":"G42-I42","v":10},null,10,{"$f":"K42+M42","v":20},null,1,25,null,{"$f":"SUM(O12:T12)","v":0},null,{"$f":"Q42-S42","v":25},null,null,{"$f":"U42+W42","v":25},null,1,20,null,{"$f":"SUM(X12:AC12)","v":10},null,{"$f":"AA42-AC42","v":10},null,10,{"$f":"AE42+AG42","v":20}]
[null,null,null,null,null,2,20,null,{"$f":"SUM(F13:K13)","v":10},null,{"$f":"G43-I43","v":10},null,10,{"$f":"K43+M43","v":20},null,2,20,null,{"$f":"SUM(O13:T13)","v":0},null,{"$f":"Q43-S43","v":20},null,null,{"$f":"U43+W43","v":20},null,2,20,null,{"$f":"SUM(X13:AC13)","v":10},null,{"$f":"AA43-AC43","v":10},null,10,{"$f":"AE43+AG43","v":20}]
[null,null,null,null,null,3,20,null,10,null,10,null,10,20,null,3,20,null,0,null,20,null,null,20,null,3,20,null,10,null,10,null,10,20]
[null,null,null,null,null,4,20,null,0,null,20,null,null,20,null,4,17,null,0,null,17,null,null,17,null,4,20,null,0,null,20,null,null,20]
[null,null,null,null,null,5,20,null,0,null,20,null,null,20,null,5,15,null,0,null,15,null,null,15,null,5,20,null,0,null,20,null,null,20]
[null,null,null,null,null,6,20,null,0,null,20,null,null,20,null,6,14,null,0,null,14,null,null,14,null,6,20,null,0,null,20,null,null,20]
[null,null,null,null,null,7,20,null,0,null,20,null,null,20,null,7,15,null,0,null,15,null,null,15,null,7,20,null,0,null,20,null,null,20]
[null,null,null,null,null,8,20,null,0,null,20,null,null,20,null,8,14,null,0,null,14,null,null,14,null,8,20,null,0,null,20,null,null,20]
[null,null,null,null,null,9,20,null,0,null,20,null,null,20,null,9,15,null,0,null,15,null,null,15,null,9,20,null,0,null,20,null,null,20]
[null,null,null,null,null,10,20,null,0,null,20,null,null,20,null,10,15,null,0,null,15,null,null,15,null,10,20,null,0,null,20,null,null,20]
[null,null,null,null,null,11,20,null,0,null,20,null,null,20,null,11,15,null,0,null,15,null,null,15,null,11,20,null,0,null,20,null,null,20]
[null,null,null,null,null,12,20,null,0,null,20,null,null,20,null,12,14,null,0,null,14,null,null,14,null,12,20,null,0,null,20,null,null,20]
[null,null,null,null,null,13,20,null,0,null,20,null,null,20,null,13,15,null,0,null,15,null,null,15,null,13,20,null,0,null,20,null,null,20]
[null,null,null,null,null,14,20,null,0,null,20,null,null,20,null,14,14,null,0,null,14,null,null,14,null,14,20,null,0,null,20,null,null,20]
[null,null,null,null,null,15,20,null,0,null,20,null,null,20,null,15,14,null,0,null,14,null,null,14,null,15,20,null,0,null,20,null,null,20]
[null,null,null,null,null,16,20,null,0,null,20,null,null,20,null,16,14,null,0,null,14,null,null,14,null,16,20,null,0,null,20,null,null,20]
[null,null,null,null,null,17,20,null,0,null,20,null,null,20,null,17,14,null,0,null,14,null,null,14,null,17,20,null,0,null,20,null,null,20]
[null,null,null,null,null,18,20,null,0,null,20,null,null,20,null,18,14,null,0,null,14,null,null,14,null,18,20,null,0,null,20,null,null,20]
[null,null,null,null,null,19,20,null,0,null,20,null,null,20,null,19,14,null,0,null,14,null,null,14,null,19,20,null,0,null,20,null,null,20]
[null,null,null,null,null,20,20,null,0,null,20,null,null,20,null,20,14,null,0,null,14,null,null,14,null,20,20,null,0,null,20,null,null,20]

{"sheet":"Лист2","index":1,"n_rows":0,"n_cols":0,"rows_kept":0,"cut":false,"hidden":false,"merged":[]}

{"sheet":"Лист3","index":2,"n_rows":0,"n_cols":0,"rows_kept":0,"cut":false,"hidden":false,"merged":[]}